Workbook

Sheet P&L
A1: AGILENT TECHNOLOGIES, INC.
A2: CONDENSED CONSOLIDATED STATEMENT OF OPERATIONS
A3: (In millions, except per share amounts)
A4: (Unaudited)
A5: PRELIMINARY
B8: Three Months Ended | F8: Six Months Ended
B9: April 30, | F9: April 30,
B10: 2023 | D10: 2022 | F10: 2023 | H10: 2022
A12: Net revenue | B12: $1,717 | D12: $1,607 | F12: $3,473 | H12: $3,281
A14: Costs and expenses:
A15: Cost of products and services | B15: 793 | D15: 746 | F15: 1,581 | H15: 1,510
A16: Research and development | B16: 126 | D16: 115 | F16: 249 | H16: 232
A17: Selling, general and administrative | B17: 415 | D17: 386 | F17: 834 | H17: 803
A18: Total costs and expenses | B18: =SUM(B15:B17) -> 1,334 | D18: =SUM(D15:D17) -> 1,247 | F18: =SUM(F15:F17) -> 2,664 | H18: =SUM(H15:H17) -> 2,545
A20: Income from operations | B20: =B12-B18 -> 383 | D20: =D12-D18 -> 360 | F20: =F12-F18 -> 809 | H20: =H12-H18 -> 736
A22: Interest income | B22: 12 | D22: 1 | F22: 21 | H22: 2
A23: Interest expense | B23: (24) | D23: (21) | F23: (49) | H23: (42)
A24: Other income (expense), net | B24: 6 | D24: (7) | F24: 6 | H24: (44)
A26: Income before taxes | B26: =SUM(B20:B24) -> 377 | D26: =SUM(D20:D24) -> 333 | F26: =SUM(F20:F24) -> 787 | H26: =SUM(H20:H24) -> 652
A28: Provision for income taxes | B28: 75 | D28: 59 | F28: 133 | H28: 95
A30: Net income | B30: =B26-B28 -> $302 | D30: =D26-D28 -> $274 | F30: =F26-F28 -> $654 | H30: =H26-H28 -> $557
A34: Net income per share:
A35: Basic | B35: =B30/B39 -> $1.02 | D35: =D30/D39 -> $0.92 | F35: =F30/F39 -> $2.21 | H35: =H30/H39 -> $1.86
A36: Diluted | B36: =B30/B40 -> $1.02 | D36: =D30/D40 -> $0.91 | F36: =F30/F40 -> $2.20 | H36: =H30/H40 -> $1.84
A38: Weighted average shares used in computing net income per share:
A39: Basic | B39: 296 | D39: 299 | F39: 296 | H39: 300
A40: Diluted | B40: 297 | D40: 301 | F40: 297 | H40: 302
A48: The preliminary income statement is estimated based on our current information.
A51: Page 1

Sheet Balance Sheet
A1: AGILENT TECHNOLOGIES, INC.
A2: CONDENSED CONSOLIDATED BALANCE SHEET
A3: (In millions, except par value and share amounts)
A4: (Unaudited)
A5: PRELIMINARY
E8: April 30, | G8: October 31,
E9: 2023 | G9: 2022
A10: ASSETS
A12: Current assets:
B13: Cash and cash equivalents | E13: $1,175 | G13: $1,053
B14: Short-term investments | G14: —
B15: Accounts receivable, net | E15: 1,401 | G15: 1,405
B16: Inventory | E16: 1,103 | G16: 1,038
B17: Other current assets | E17: 270 | G17: 282
C18: Total current assets | E18: =SUM(E13:E17) -> 3,949 | G18: =SUM(G13:G17) -> 3,778
A20: Property, plant and equipment, net | E20: 1,184 | G20: 1,100
A21: Goodwill | E21: 3,980 | G21: 3,952
A22: Other intangible assets, net | E22: 798 | G22: 821
A23: Long-term investments | E23: 186 | G23: 195
A24: Other assets | E24: 695 | G24: 686
C25: Total assets | E25: =SUM(E18:E24) -> $10,792 | G25: =SUM(G18:G24) -> $10,532
A27: LIABILITIES AND EQUITY
A29: Current liabilities:
B30: Accounts payable | E30: $479 | G30: $580
B31: Employee compensation and benefits | E31: 359 | G31: 455
B32: Deferred revenue | E32: 519 | G32: 461
B33: Short-term debt | E33: — | G33: 36
B34: Other accrued liabilities | E34: 309 | G34: 329
C35: Total current liabilities | E35: =SUM(E30:E34) -> 1,666 | G35: =SUM(G30:G34) -> 1,861
A37: Long-term debt | E37: 2,733 | G37: 2,733
A38: Retirement and post-retirement benefits | E38: 97 | G38: 97
A39: Other long-term liabilities | E39: 515 | G39: 536
C40: Total liabilities | E40: =SUM(E35:E39) -> 5,011 | G40: =SUM(G35:G39) -> 5,227
A42: Total Equity:
B43: Stockholders' equity:
B44: Preferred stock; $0.01 par value; 125 million
C45: shares authorized; none issued and outstanding at April 30, 2023 and October 31, 2022 | E45: — | G45: —
B46: Common stock; $0.01 par value, 2 billion
C47: shares authorized; 295 million shares at April 30, 2023
C48: and 295 million shares at October 31, 2022, issued and outstanding | E48: 3 | G48: 3
B49: Additional paid-in-capital | E49: 5,360 | G49: 5,325
B50: Retained earnings | E50: 700 | G50: 324
B51: Accumulated other comprehensive loss | E51: (282) | G51: (347)
C52: Total stockholders' equity | E52: =SUM(E45:E51) -> 5,781 | G52: =SUM(G45:G51) -> 5,305
D53: Total liabilities and stockholders' equity | E53: =E40+E52 -> $10,792 | G53: =G40+G52 -> $10,532
A56: The preliminary balance sheet is estimated based on our current information.
A60: Page 2

Sheet Cash Flow
A1: AGILENT TECHNOLOGIES, INC.
A2: CONDENSED CONSOLIDATED STATEMENT OF CASH FLOWS
A3: (In millions)
A4: (Unaudited)
A5: PRELIMINARY
F8: Six Months Ended
F9: April 30, | H9: April 30,
F10: 2023 | H10: 2022
A11: Cash flows from operating activities:
B12: Net income | F12: $654 | H12: $557
A14: Adjustments to reconcile net income to net cash provided by operating activities:
B15: Depreciation and amortization | F15: 138 | H15: 164
B16: Share-based compensation | F16: 68 | H16: 71
B17: Deferred taxes | F17: (1) | H17: 19
B18: Excess and obsolete inventory related charges | F18: 15 | H18: 10
B19: Net loss on equity securities | F19: 14 | H19: 62
B20: Change in fair value of contingent consideration | F20: 1 | H20: (25)
B21: Other non-cash expense, net | F21: 2 | H21: 9
B22: Changes in assets and liabilities:
C23: Accounts receivable, net | F23: 49 | H23: (108)
C24: Inventory | F24: (71) | H24: (124)
C25: Accounts payable | F25: (101) | H25: 54
C26: Employee compensation and benefits | F26: (110) | H26: (144)
C27: Other assets and liabilities | F27: 36 | H27: (7)
A28: Net cash provided by operating activities (a) | F28: =SUM(F12:F27) -> 694 | H28: =SUM(H12:H27) -> 538
A30: Cash flows from investing activities:
B31: Investments in property, plant and equipment | F31: (133) | H31: (139)
B32: Payment to acquire equity securities | F32: (1) | H32: (3)
B33: Payment in exchange for convertible note | F33: (5) | H33: (1)
B34: Proceeds from sale of equity securities | F34: 5 | H34: 6
B35: Proceeds from convertible note | F35: 4 | H35: —
B36: Acquisition of businesses and intangible assets, net of cash acquired | F36: (51) | H36: (18)
A37: Net cash used in investing activities | F37: =SUM(F31:F36) -> (181) | H37: =SUM(H31:H36) -> (155)
A39: Cash flows from financing activities:
B40: Issuance of common stock under employee stock plans | F40: 35 | H40: 27
B41: Payment of taxes related to net share settlement of equity awards | F41: (52) | H41: (64)
B42: Payment of dividends | F42: (133) | H42: (126)
B43: Proceeds from revolving credit facility | F43: 175 | H43: —
B44: Repayment of revolving credit facility | F44: (175) | H44: —
B45: Proceeds from issuance of commercial paper | F45: 1,412 | H45: 575
B46: Repayment of commercial paper | F46: (1,447) | H46: (400)
B47: Payment for contingent consideration | F47: (62) | H47: —
B48: Payments for repurchase of common stock | F48: (160) | H48: (681)
A49: Net cash used in financing activities | F49: =SUM(F38:F48) -> (407) | H49: =SUM(H38:H48) -> (669)
A51: Effect of exchange rate movements | F51: 16 | H51: (16)
A53: Net increase (decrease) in cash, cash equivalents and restricted cash | F53: =F28+F37+F49+F51 -> 122 | H53: =H28+H37+H49+H51 -> (302)
A55: Cash, cash equivalents and restricted cash at beginning of period | F55: 1,056 | H55: 1,490
A57: Cash, cash equivalents and restricted cash at end of period | F57: =SUM(F53:F55) -> $1,178 | H57: =SUM(H53:H55) -> $1,188
A60: Reconciliation of cash, cash equivalents and restricted cash to the condensed consolidated balance sheet:
B62: Cash and cash equivalents | F62: $1,175 | H62: $1,186
B63: Restricted cash, included in other assets | F63: 3 | H63: 2
B64: Total cash, cash equivalents and restricted cash | F64: =SUM(F62:F63) -> $1,178 | H64: =SUM(H62:H63) -> $1,188
A67: (a) Cash payments included in operating activities:
B69: Income tax paid, net of refunds received | F69: $128 | H69: $134
B70: Interest payments, net of capitalized interest | F70: $44 | H70: $40
A73: The preliminary cash flow is estimated based on our current information.
A76: Page 3

Sheet Net Income & EPS Non-GAAP
A1: AGILENT TECHNOLOGIES, INC.
A2: NON-GAAP NET INCOME AND DILUTED EPS RECONCILIATIONS
A3: (In millions, except per share amounts)
A4: (Unaudited)
A5: PRELIMINARY
E7: Three Months Ended | K7: Six Months Ended
E8: April 30, | K8: April 30,
E9: 2023 | H9: 2022 | K9: 2023 | N9: 2022
E10: Net Income | F10: Diluted EPS | H10: Net Income | I10: Diluted EPS | K10: Net Income | L10: Diluted EPS | N10: Net Income | O10: Diluted EPS
A12: GAAP net income | E12: $302 | F12: $1.02 | H12: $274 | I12: $0.91 | K12: $654 | L12: $2.20 | N12: $557 | O12: $1.84
B13: Non-GAAP adjustments:
C14: Asset impairments
C15: Intangible amortization | E15: 38 | F15: =0.13-0.01 -> 0.12 | H15: 50 | I15: 0.17 | K15: 74 | L15: 0.25 | N15: 101 | O15: 0.34
C16: Transformational initiatives | E16: 5 | F16: 0.02 | H16: 9 | I16: 0.03 | K16: 12 | L16: 0.04 | N16: 13 | O16: 0.04
C17: Acquisition and integration costs | E17: 5 | F17: 0.02 | H17: 8 | I17: 0.03 | K17: 7 | L17: =0.02 -> 0.02 | N17: 15 | O17: 0.05
C18: Change in fair value of contingent consideration | E18: — | F18: — | H18: (28) | I18: (0.09) | K18: 1 | L18: — | N18: (25) | O18: (0.08)
C19: Business exit and divestiture costs | E19: — | F19: — | H19: 7 | I19: 0.02 | K19: — | L19: — | N19: 7 | O19: 0.02
C20: Net loss on equity securities | E20: 4 | F20: 0.01 | H20: 16 | I20: 0.05 | K20: 16 | L20: =0.05+0.01 -> 0.06 | N20: 61 | O20: 0.20
C21: Other | E21: 8 | F21: 0.03 | H21: — | I21: — | K21: 11 | L21: 0.04 | N21: — | O21: —
C22: Adjustment for taxes (a) | E22: 15 | F22: =0.04+0.01 -> 0.05 | H22: 4 | I22: 0.01 | K22: 8 | L22: =0.04-0.01 -> 0.03 | N22: (21) | O22: (0.07)
A23: Non-GAAP net income | E23: =SUM(E12:E22) -> $377 | F23: =SUM(F12:F22) -> $1.27 | H23: =SUM(H12:H22) -> $340 | I23: =SUM(I12:I22) -> $1.13 | K23: =SUM(K12:K22) -> $783 | L23: =SUM(L12:L22) -> $2.64 | N23: =SUM(N12:N22) -> $708 | O23: =SUM(O12:O22) -> $2.34
A26: (a) The adjustment for taxes excludes tax benefits that management believes are not directly related to on-going operations and which are either isolated, temporary or cannot be expected to occur again with any regularity or predictability such as windfall benefits on stock compensation and the impact of R&D capitalization under section 174 of the Tax Cuts and Jobs Act of 2017. For the three and six months ended April 30, 2023, management used a non-GAAP effective tax rate of 13.75%. For the three months ended April 30, 2022, management used a non-GAAP effective tax rate of 13.92%. For the six months ended April 30, 2022, management used a non-GAAP effective tax rate of 14.00%.
A28: We provide non-GAAP net income and non-GAAP net income per share amounts in order to provide meaningful supplemental information regarding our operational performance and our prospects for the future. These supplemental measures exclude, among other things, charges related to amortization of intangibles, transformational initiatives, acquisition and integration costs, change in fair value of contingent consideration, business exit and divestiture costs and net loss on equity securities.
B29: Asset impairments include assets that have been written down to their fair value.
B30: Transformational initiatives include expenses associated with targeted cost reduction activities such as manufacturing transfers including costs to move manufacturing, small site consolidations, legal entity and other business reorganizations, insourcing or outsourcing of activities. Such costs may include move and relocation costs, one-time termination benefits and other one-time reorganization costs. Included in this category are also expenses associated with company programs to transform our product lifecycle management (PLM) system, human resources and financial systems.
B31: Acquisition and integration costs include all incremental expenses incurred to effect a business combination. Such acquisition costs may include advisory, legal, accounting, valuation, and other professional or consulting fees. Such integration costs may include expenses directly related to integration of business and facility operations, the transfer of assets and intellectual property, information technology systems and infrastructure and other employee-related costs.
B32: Pension settlement loss relates to the relief of the US Retirement Plan pension obligation due to increased lump sum payouts over a specified accounting threshold.
B33: Special compliance costs include costs associated with transforming our processes to implement new regulations such as data privacy regulations, revenue recognition, lease accounting and certain tax reporting requirements.
B34: Change in fair value of contingent consideration represents changes in the fair value estimate of acquisition-related contingent consideration.
B35: Loss on extinguishment of debt relates to the net loss recorded on the redemption of $100 million of the $400 million outstanding 3.2% 2022 senior notes due on October 1, 2022, called on December 22, 2020 and settled on January 21, 2021.
B36: Business exit and divestiture costs include costs associated with business divestitures.
B37: Pension settlement loss relates to the relief of the US Retirement Plan pension obligation due to increased lump sum payouts over a specified accounting threshold.
B38: NASD site costs include all the costs related to the expansion of our manufacturing of nucleic acid active pharmaceutical ingredients incurred prior to the commencement of commercial manufacturing.
B39: Acceleration of share-based compensation expense represents stock-based compensation expense that was accelerated upon employees’ involuntary termination from the company.
B40: Net loss on equity securities relates to the realized and unrealized mark-to-market adjustments for our marketable and non-marketable equity securities.
B41: Other includes certain legal costs and settlements, environment compliance costs related to a prior acquisition and acceleration of share-based compensation expense in addition to other miscellaneous adjustments.
B42: Tax benefit on intra-entity asset transfer relates to our operations in Singapore along with our application of the new accounting rules for income tax consequences of intra-entity transfer of assets as adopted on November 1, 2018.
A44: Our management uses non-GAAP measures to evaluate the performance of our core businesses, to estimate future core performance and to compensate employees. Since management finds this measure to be useful, we believe that our investors benefit from seeing our results “through the eyes” of management in addition to seeing our GAAP results. This information facilitates our management’s internal comparisons to our historical operating results as well as to the operating results of our competitors.
A46: Our management recognizes that items such as amortization of intangibles can have a material impact on our cash flows and/or our net income. Our GAAP financial statements including our statement of cash flows portray those effects. Although we believe it is useful for investors to see core performance free of special items, investors should understand that the excluded items are actual expenses that may impact the cash available to us for other uses. To gain a complete picture of all effects on the company’s profit and loss from any and all events, management does (and investors should) rely upon the GAAP income statement. The non-GAAP numbers focus instead upon the core business of the company, which is only a subset, albeit a critical one, of the company’s performance.
A48: Readers are reminded that non-GAAP numbers are merely a supplement to, and not a replacement for, GAAP financial measures. They should be read in conjunction with the GAAP financial measures. It should be noted as well that our non-GAAP information may be different from the non-GAAP information provided by other companies.
A50: The preliminary non-GAAP net income and diluted EPS reconciliation is estimated based on our current information.
A53: Page 4

Sheet Segment Results
A1: AGILENT TECHNOLOGIES, INC.
A2: SEGMENT INFORMATION
A3: (In millions, except where noted)
A4: (Unaudited)
A5: PRELIMINARY
A8: Quarter-over-Quarter
A10: Life Sciences and Applied Markets Group
C11: Q2'23 | E11: Q2'22
A12: Revenue | C12: $968 | E12: $896
A13: Gross Margin, % | C13: 59.9% | E13: 59.0%
A14: Income from Operations | C14: $264 | E14: $228
A15: Operating margin, % | C15: 27.3% | E15: 25.5%
A18: Diagnostics and Genomics Group
C19: =C11 -> Q2'23 | E19: =E11 -> Q2'22
A20: Revenue | C20: $362 | E20: $358
A21: Gross Margin, % | C21: 51.8% | E21: 56.0%
A22: Income from Operations | C22: $73 | E22: $91
A23: Operating margin, % | C23: 20.2% | E23: 25.5%
A26: Agilent CrossLab Group
C27: =C11 -> Q2'23 | E27: =E11 -> Q2'22
A28: Revenue | C28: $387 | E28: $353
A29: Gross Margin, % | C29: 47.0% | E29: 47.1%
A30: Income from Operations | C30: $103 | E30: $87
A31: Operating margin, % | C31: 26.6% | E31: 24.6%
A34: Year-over-Year
A36: Life Sciences and Applied Markets Group
C37: FY21 | E37: FY20
A38: Revenue | C38: $2,823 | E38: $2,392
A39: Gross Margin, % | C39: 59.8% | E39: 59.2%
A40: Income from Operations | C40: $722 | E40: $548
A41: Operating margin, % | C41: 25.6% | E41: 22.9%
A44: Diagnostics and Genomics Group
C45: =C37 -> FY21 | E45: =E37 -> FY20
A46: Revenue | C46: $1,296 | E46: $1,047
A47: Gross Margin, % | C47: 52.8% | E47: 51.9%
A48: Income from Operations | C48: $273 | E48: $192
A49: Operating margin, % | C49: 21.0% | E49: 18.3%
A52: Agilent CrossLab Group
C53: =C37 -> FY21 | E53: =E37 -> FY20
A54: Revenue | C54: $2,200 | E54: $1,900
A55: Gross Margin, % | C55: 52.3% | E55: 52.2%
A56: Income from Operations | C56: $618 | E56: $516
A57: Operating margin, % | C57: 28.1% | E57: 27.2%
A61: Income from operations reflect the results of our reportable segments under Agilent's management reporting system which are not necessarily in conformity with GAAP financial measures. Income from operations of our reporting segments exclude, among other things, charges related to amortization of intangibles, transformational initiatives, acquisition and integration costs, change in fair value of contingent consideration and business exit and divestiture costs.
A63: Readers are reminded that non-GAAP numbers are merely a supplement to, and not a replacement for, GAAP financial measures. They should be read in conjunction with the GAAP financial measures. It should be noted as well that our non-GAAP information may be different from the non-GAAP information provided by other companies.
A65: The preliminary segment information is estimated based on our current information.
A68: Page 5

Sheet Core Revenue by Segment (QTD)
A1: AGILENT TECHNOLOGIES, INC.
A2: RECONCILIATIONS OF REVENUE BY SEGMENT
A3: EXCLUDING ACQUISITIONS, DIVESTITURES AND THE IMPACT OF CURRENCY ADJUSTMENTS (CORE)
A4: (in millions)
A5: (Unaudited)
A6: PRELIMINARY
B8: Year-over-Year
B10: GAAP
D11: Year-over-Year
A12: GAAP Revenue by Segment | B12: Q2'23 | C12: Q2'22 | D12: % Change
A14: Life Sciences and Applied Markets Group | B14: $968 | C14: $896 | D14: 8.0%
A15: Diagnostics and Genomics Group | B15: 362 | C15: 358 | D15: 1.1%
A16: Agilent CrossLab Group | B16: 387 | C16: 353 | D16: 9.8%
A17: Agilent | B17: =SUM(B14:B16) -> $1,717 | C17: =SUM(C14:C16) -> $1,607 | D17: 6.8%
B22: Non-GAAP (excluding Acquisitions & Divestitures) | F22: Year-over-Year at Constant Currency (a)
D23: Year-over-Year | F23: Year-over-Year | G23: Percentage Point Impact from Currency | I23: Current Quarter Currency Impact (b)
A24: Non GAAP Revenue by Segment | B24: =B12 -> Q2'23 | C24: =C12 -> Q2'22 | D24: % Change | F24: % Change
A26: Life Sciences and Applied Markets Group | B26: $965 | C26: $896 | D26: 7.6% | F26: 10.5% | G26: -3 ppts | I26: $(25)
A27: Diagnostics and Genomics Group | B27: 362 | C27: 358 | D27: 1.1% | F27: 3.3% | G27: -2 ppts | I27: (8)
A28: Agilent CrossLab Group | B28: 387 | C28: 353 | D28: 9.8% | F28: 13.2% | G28: -3 ppts | I28: (12)
A29: Agilent (Core) | B29: =SUM(B26:B28) -> $1,714 | C29: =SUM(C26:C28) -> $1,607 | D29: 6.6% | F29: 9.5% | G29: -3 ppts | I29: =SUM(I26:I28) -> $(45)
A33: We compare the year-over-year change in revenue excluding the effect of recent acquisitions and divestitures and foreign currency rate fluctuations to assess the performance of our underlying business.
A35: (a) The constant currency year-over-year growth percentage is calculated by recalculating all periods in the comparison period at the foreign currency exchange rates used for accounting during the last month of the current quarter and then using those revised values to calculate the year-over-year percentage change.
A37: (b) The dollar impact from the current quarter currency impact is equal to the total year-over-year dollar change less the constant currency year-over-year change.
A39: The preliminary reconciliation of GAAP revenue adjusted for recent acquisitions and divestitures and impact of currency is estimated based on our current information.
A45: Page 6
